Workbook

Sheet Budjetti
A2: NAVI – UUDEN YRITTÄJÄN NAVIGAATTORI | I2: 💡 Selitys ja esimerkki
A3: Budjettipohja – maksuton pohja yrittäjyyden alkuvaiheen tueksi
A4: Etelä-Karjalan Yrittäjät | Yrittäjyyden äitiyspakkaus -hanke 2025–2026 | Maksuton työkalu yrittäjän tueksi
B6: Yrityksen nimi | I6: Kirjoita yrityksesi nimi tähän.
B7: Tulosryhmä / Tili | C7: Edellinen tilikausi € | D7: Budjetti tilikaudelle € | F7: Muutos € | G7: Muutos % | I7: 💡 Mitä tämä tarkoittaa?
B8: MYYNTITUOTOT | I8: 💡 MYYNTITUOTOT — Nämä ovat yrityksesi tuloja
B9: Yleiset myyntitilit yhteensä | C9: 100000 | D9: 102000 | F9: =D9-C9 -> 2000 | G9: =IFERROR(F9/C9,"") -> 0.02 | I9: ▸ Yleiset myyntitilit yhteensä Kaikki säännöllinen myynti — ILMAN ALV:tä. Esim: kampaamo saa 4 000 € asiakkaita / kk, verkkokauppa 2 500 € tilauksia / kk. ⚠️ Älä lisää ALV:tä tähän — vain nettomyynti.
B10: Muu liikevaihto yhteensä | C10: 2000 | D10: 2000 | F10: =D10-C10 -> 0 | G10: =IFERROR(F10/C10,"") -> 0 | I10: ▸ Muu liikevaihto yhteensä Epäsäännölliset tai muut tulot. Esim: myit vanhan laitteen 200 €, sait projektipalkkion 500 €. Jätä tyhjäksi jos ei ole.
B11: LIIKEVAIHTO YHTEENSÄ | C11: =SUM(C9:C10) -> 102000 | D11: =SUM(D9:D10) -> 104000 | F11: =D11-C11 -> 2000 | G11: =IFERROR(F11/C11,"") -> 0.01960784314 | I11: ▸ LIIKEVAIHTO YHTEENSÄ ✅ Kaikki tulosi yhteensä. Lasketaan automaattisesti. Tämä on se luku johon kaikkia kuluja verrataan.
B13: LIIKETOIMINNAN MUUT TUOTOT | I13: 💡 MUUT TUOTOT
B14: Varastojen muutos, valmiit ja keskeneräiset | C14: 10000 | D14: -5000 | F14: =D14-C14 -> -15000 | G14: =IFERROR(F14/C14,"") -> -1.5 | I14: ▸ Varastojen muutos Jos pidät varastoa (esim. myymälä tai verkkokauppa): kirjoita varaston arvomuutos. Jos varasto kasvoi 10 000 €, merkitse +10 000. Jos pieneni, merkitse miinuksella. ✏️ Jos sinulla EI ole varastoa, jätä 0.
B15: Liiketoiminnan muut tuotot yhteensä | C15: 5000 | D15: 6000 | F15: =D15-C15 -> 1000 | G15: =IFERROR(F15/C15,"") -> 0.2 | I15: ▸ Liiketoiminnan muut tuotot Avustukset, korvaukset, vuokratulot tai muut satunnaiset tulot. Esim: sait 2 000 € kehittämisavustusta tai vuokrasit laitteistoa 500 €. Jätä 0 jos ei ole.
B17: MATERIAALIT JA PALVELUT | I17: 💡 MATERIAALIT JA PALVELUT — Tuotantoon menevät kulut
B18: Ostot tilikauden aikana yhteensä | C18: -30000 | D18: -31000 | F18: =D18-C18 -> -1000 | G18: =IFERROR(F18/C18,"") -> 0.03333333333 | I18: ▸ Ostot tilikauden aikana Kaikki tavarat ja materiaalit joita ostit liiketoimintaan. Esim: kampaamo ostaa hiustuotteita −5 000 €, verkkokauppa ostaa tavaroita −15 000 €. Merkitse miinusmerkkisenä (kulut ovat negatiivisia).
B19: Varastojen muutos yhteensä | C19: 5000 | D19: 5000 | F19: =D19-C19 -> 0 | G19: =IFERROR(F19/C19,"") -> 0 | I19: ▸ Varastojen muutos Varaston arvomuutos materiaalipuolella. Jätä 0 jos ei varastoa.
B20: Ulkopuoliset palvelut yhteensä | C20: -10000 | D20: -10000 | F20: =D20-C20 -> 0 | G20: =IFERROR(F20/C20,"") -> 0 | I20: ▸ Ulkopuoliset palvelut Ostettu työ tai ulkoistetut palvelut jotka kuuluvat suoraan tuotantoon. Esim: alihankkija tekee osan tuotteesta, ulkopuolinen graafikko.
B21: Materiaalit ja palvelut yhteensä | C21: =SUM(C18:C20) -> -35000 | D21: =SUM(D18:D20) -> -36000 | F21: =D21-C21 -> -1000 | G21: =IFERROR(F21/C21,"") -> 0.02857142857 | I21: ▸ Materiaalit ja palvelut yhteensä ✅ Lasketaan automaattisesti.
B23: HENKILÖSTÖKULUT | I23: 💡 HENKILÖSTÖKULUT — Palkat ja niihin liittyvät kulut
B24: Palkat ja palkkiot yhteensä | C24: -20000 | D24: -21000 | F24: =D24-C24 -> -1000 | G24: =IFERROR(F24/C24,"") -> 0.05 | I24: ▸ Palkat ja palkkiot Kaikki maksetut palkat, myös sinulle itsellesi jos otat palkkaa. Esim: oma palkka −2 000 €/kk = −24 000 €/vuosi, + yksi osa-aikainen −800 €/kk. Merkitse miinusmerkkisenä.
B25: Henkilösivukulut yhteensä | C25: -5000 | D25: -5000 | F25: =D25-C25 -> 0 | G25: =IFERROR(F25/C25,"") -> 0 | I25: ▸ Henkilösivukulut Työnantajan sivukulut: eläkemaksut, sairausvakuutus jne. Yleensä n. 20–25 % maksetuista palkoista. Lasketaan automaattisesti jos merkitset palkat.
B26: Henkilöstökulut yhteensä | C26: =SUM(C24:C25) -> -25000 | D26: =SUM(D24:D25) -> -26000 | F26: =D26-C26 -> -1000 | G26: =IFERROR(F26/C26,"") -> 0.04 | I26: ▸ Henkilöstökulut yhteensä ✅ Lasketaan automaattisesti.
B28: POISTOT JA ARVONALENTUMISET | I28: 💡 POISTOT — Koneiden ja laitteiden arvon väheneminen
B29: Suunnitelman mukaiset poistot yhteensä | C29: -3000 | D29: -3000 | F29: =D29-C29 -> 0 | G29: =IFERROR(F29/C29,"") -> 0 | I29: ▸ Suunnitelman mukaiset poistot Koneiden, laitteiden ja kaluston arvon pieneneminen vuosittain. Esim: ostin 6 000 € koneen → se poistetaan 3 vuodessa → −2 000 €/vuosi. ✏️ Jos sinulla EI ole isoja koneita tai laitteita, jätä 0.
B30: Poistot ja arvonalentumiset yhteensä | C30: =SUM(C29) -> -3000 | D30: =SUM(D29) -> -3000 | F30: =D30-C30 -> 0 | G30: =IFERROR(F30/C30,"") -> 0 | I30: ▸ Poistot yhteensä ✅ Lasketaan automaattisesti.
B32: LIIKETOIMINNAN MUUT KULUT | I32: 💡 LIIKETOIMINNAN MUUT KULUT — Kaikki muut yrityskulut
B33: Vapaaehtoiset henkilösivukulut yhteensä | C33: -4000 | D33: -4000 | F33: =D33-C33 -> 0 | G33: =IFERROR(F33/C33,"") -> 0 | I33: ▸ Vapaaehtoiset henkilösivukulut Vapaaehtoiset henkilöstöedut: esim. lounasetu, liikuntaetu, puhelinetu. Jätä 0 jos ei ole.
B34: Toimitilakulut yhteensä | C34: -3000 | D34: -3000 | F34: 0 | G34: 0 | I34: ▸ Toimitilakulut Toimiston, myymälän tai varaston vuokra + sähkö + siivous. Esim: toimistovuokra 400 € + sähkö 80 € = −480 €/kk
B35: Ajoneuvokulut yhteensä | C35: -500 | D35: -500 | F35: 0 | G35: 0 | I35: ▸ Ajoneuvokulut Yrityksen ajoneuvon polttoaine, huolto, vakuutukset. Jätä 0 jos teet työn kotoa tai asiakkaiden luona ilman omaa autoa.
B36: Atk-laite ja -ohjelmistokulut yhteensä | C36: -1000 | D36: -1000 | F36: 0 | G36: 0 | I36: ▸ Atk-laite- ja ohjelmistokulut Tietokone, tulostin, pilvipalvelut, tilausohjelmistot. Esim: Adobe 60 €/kk, Wolt for Business 30 €/kk, Shopify 30 €/kk.
B37: Muut kone- ja kalustokulut yhteensä | C37: -1000 | D37: -1000 | F37: 0 | G37: 0 | I37: ▸ Muut kone- ja kalustokulut Muiden laitteiden ja kaluston huolto ja vuokrat. Esim: kahvilakoneen vuokra, kampaamon tuolien leasing.
B38: Matkakulut yhteensä | C38: -826 | D38: -900 | F38: -74 | G38: 0.08958837772 | I38: ▸ Matkakulut Työmatkoja: kilometrikorvaukset, junat, lennot, hotellit. Vero.fi antaa vuosittain verovapaan kilometrikorvaustason.
B39: Edustuskulut yhteensä | C39: -500 | D39: -500 | F39: 0 | G39: 0 | I39: ▸ Edustuskulut Asiakastapaamisiin liittyvät kulut. Verotuksessa tiukat rajat. Esim: kahvit asiakkaalle, pieni lahja. Merkitse tarkasti.
B40: Myynti- ja markkinointikulut yhteensä | C40: -500 | D40: -500 | F40: 0 | G40: 0 | I40: ▸ Myynti- ja markkinointikulut Mainokset, some-mainokset, flyerit, messut, nettisivut. Esim: Facebook-mainokset 100 €/kk, nettisivudomaini 20 €/vuosi.
B41: Tutkimus- ja kehityskulut yhteensä | C41: -100 | D41: -500 | F41: -400 | G41: 4 | I41: ▸ Tutkimus- ja kehityskulut Uusien tuotteiden tai palvelujen kehittäminen. Esim: koulutus, prototyypit, testit.
B42: Hallintopalvelut yhteensä | C42: -1000 | D42: -1000 | F42: 0 | G42: 0 | I42: ▸ Hallintopalvelut Kirjanpitäjä, lakimies, konsultti. Esim: tilitoimisto 150 €/kk = −1 800 €/vuosi.
B43: Muut hallintokulut yhteensä | C43: -2000 | D43: -2000 | F43: 0 | G43: 0 | I43: ▸ Muut hallintokulut Toimistotarvikkeet, postikulut, pankkikulut, vakuutukset. Esim: yrittäjävakuutus 600 €/vuosi, pankki 10 €/kk.
B44: Muut liikekulut yhteensä | C44: -1000 | D44: -1000 | F44: 0 | G44: 0 | I44: ▸ Muut liikekulut Kaikki muut kulut jotka eivät sovi yllä oleviin kategorioihin.
B45: Liiketoiminnan muut kulut yhteensä | C45: =SUM(C33:C44) -> -15426 | D45: =SUM(D33:D44) -> -15900 | F45: -474 | G45: 0.03072734345 | I45: ▸ Muut kulut yhteensä ✅ Lasketaan automaattisesti.
B47: LIIKEVOITTO (-TAPPIO) | C47: =SUM(C11,C14,C15,C21,C26,C30,C45) -> 38574 | D47: =SUM(D11,D14,D15,D21,D26,D30,D45) -> 24100 | F47: =D47-C47 -> -14474 | G47: =IFERROR(F47/C47,"") -> -0.3752268367 | I47: ▸ LIIKEVOITTO (-TAPPIO) Kaikki tuotot MIINUS kaikki kulut. ✅ Positiivinen = yritys tuottaa. Negatiivinen = tappiolla. Tämä EI ole vielä sinulle jäävä summa — siitä vähennetään vielä verot.
B48: KÄYTTÖKATE | C48: =C47-C30 -> 41574 | D48: =D47-D30 -> 27100 | F48: =D48-C48 -> -14474 | G48: =IFERROR(F48/C48,"") -> -0.3481502862 | I48: ▸ KÄYTTÖKATE (EBITDA) Liikevoitto ENNEN poistoja. Kertoo yrityksesi operatiivisen tehokkuuden — onko toiminta kannattavaa ennen investointeja? Hyvä käyttökate on positiivinen luku.
B50: % LIIKEVAIHDOSTA | I50: 💡 % LIIKEVAIHDOSTA — Kustannusrakenne prosentteina
B51: Erä | C51: Edellinen tilikausi | D51: Budjetti tilikaudelle | I51: Nämä luvut kertovat, kuinka suuren osan liikevaihdostasi kukin kuluryhmä syö.
B52: Liiketoiminnan muut tuotot yhteensä | C52: =IFERROR(C15/C11,"") -> 0.04901960784 | D52: =IFERROR(D15/D11,"") -> 0.05769230769 | I52: Esim. 5 % = muut tuotot ovat 5 % liikevaihdostasi.
B53: Materiaalit ja palvelut yhteensä | C53: =-IFERROR(C21/C11,"") -> 0.3431372549 | D53: =-IFERROR(D21/D11,"") -> 0.3461538462 | I53: Esim. −30 % = materiaaleihin menee 30 % liikevaihdostasi.
B54: Henkilöstökulut yhteensä | C54: =-IFERROR(C26/C11,"") -> 0.2450980392 | D54: =-IFERROR(D26/D11,"") -> 0.25 | I54: Esim. −40 % = henkilöstökulut ovat 40 % liikevaihdostasi.
B55: Poistot ja arvonalentumiset yhteensä | C55: =-IFERROR(C30/C11,"") -> 0.02941176471 | D55: =-IFERROR(D30/D11,"") -> 0.02884615385 | I55: Esim. −5 % = poistot ovat 5 % liikevaihdostasi.
B56: Liiketoiminnan muut kulut yhteensä | C56: =-IFERROR(C45/C11,"") -> 0.1512352941 | D56: =-IFERROR(D45/D11,"") -> 0.1528846154 | I56: Esim. −15 % = muut kulut ovat 15 % liikevaihdostasi.
B57: LIIKEVOITTO (-TAPPIO) | C57: =IFERROR(C47/C11,"") -> 0.3781764706 | D57: =IFERROR(D47/D11,"") -> 0.2317307692 | I57: ✅ Tavoite: liikevoitto positiivinen (yli 0 %).
B58: KÄYTTÖKATE | C58: =IFERROR(C48/C11,"") -> 0.4075882353 | D58: =IFERROR(D48/D11,"") -> 0.2605769231 | I58: ✅ Hyvä käyttökate on yleensä 10–30 % toimialasta riippuen.
A60: © Etelä-Karjalan Yrittäjät | Yrittäjyyden äitiyspakkaus -hanke 2025–2026 | Maksuton työkalu – saa vapaasti käyttää ja muokata

Sheet Käyttöohje
A2: NAVI – BUDJETTIPOHJAN KÄYTTÖOHJE
A3: Etelä-Karjalan Yrittäjät | Yrittäjyyden äitiyspakkaus -hanke 2025–2026
A5: KÄYTTÖOHJEET
B6: Täytä oranssin sävyiset solut | C6: Syötä edellisen tilikauden toteutuneet luvut ja budjettisi tulevalle tilikaudelle. Jätä tyhjäksi jos luku ei koske sinua.
B7: Muutos-sarakkeet | C7: Muutos € ja Muutos % lasketaan automaattisesti – ne kertovat, kuinka paljon budjetti poikkeaa toteutuneesta.
B8: % Liikevaihdosta | C8: Taulukon alaosa näyttää tärkeimpien kuluryhmien osuuden liikevaihdosta. Hyvä tapa seurata kustannusrakennetta.
B9: Liikevaihto | C9: Merkitse vain arvonlisäveroton myynti (ilman ALV). Liikevaihto = kaikki myyntitulot yhteensä.
B10: Negatiiviset luvut | C10: Merkitse kulut miinusmerkkisinä (esim. -5000). Tuotot merkitään positiivisina.
B11: Käyttökate (EBITDA) | C11: Liikevoitto ennen poistoja. Kertoo operatiivisen kannattavuuden ilman investointien vaikutusta.
B12: Lisää tai poista rivejä | C12: Voit lisätä omia rivejä kuluryhmien sisään. Muista päivittää SUM-kaavat vastaamaan uusia rivejä.
B13: Tiedoston jakaminen | C13: Tiedosto on maksuton ja vapaasti käytettävissä. Pohjaa saa muokata omaan tarpeeseen.
A15: © Etelä-Karjalan Yrittäjät | Yrittäjyyden äitiyspakkaus -hanke 2025–2026 | Maksuton työkalu – saa vapaasti käyttää ja muokata
